fUSD/lending_fUSD_20260202
["ID","MTS","AMOUNT","RATE_DAILY","PERIOD"]
[404272526,1770021044946,-250.0,0.00016038,2]
[404272527,1770021044956,-250.0,0.00016038,2]
[404272528,1770021044967,-250.0,0.00016038,2]
[404272529,1770021044977,-250.0,0.00016038,2]
[404272530,1770021044987,-250.0,0.00016038,2]
[404272531,1770021044998,-250.0,0.00016038,2]
[404272532,1770021045008,-250.0,0.00016038,2]
[404272533,1770021045018,-250.0,0.00016038,2]
[404272534,1770021045028,-250.0,0.00016038,2]
[404272535,1770021045037,-250.0,0.00016038,2]
[404272536,1770021045047,-500.0,0.00016038,2]
[404272537,1770021045057,-500.0,0.00016038,2]
[404272538,1770021045066,-500.0,0.00016038,2]
[404272539,1770021045075,-500.0,0.00016038,2]
[404272540,1770021045085,-500.0,0.00016038,2]
[404272541,1770021045094,-578.20924308,0.00016038,2]
[404272542,1770021045103,-500.0,0.00016038,2]
[404272543,1770021045113,-500.0,0.00016038,2]
[404272544,1770021045122,-250.0,0.00016038,2]
[404272545,1770021045131,-500.0,0.00016038,2]
[404272546,1770021045141,-500.0,0.00016038,2]
[404272547,1770021045151,-250.0,0.00016038,2]
[404272548,1770021045163,-500.0,0.00016038,2]
[404272549,1770021045172,-500.0,0.00016038,2]
[404272550,1770021045182,-209.40437684,0.00016038,2]
[404272551,1770021045191,-250.0,0.00016038,2]
[404272552,1770021045201,-500.0,0.00016038,2]
[404272553,1770021045211,-500.0,0.00016038,2]
[404272554,1770021045408,-500.0,0.00016038,2]
[404272555,1770021045418,-250.0,0.00016038,2]
[404272556,1770021045428,-500.0,0.00016038,2]
[404272557,1770021045438,-250.0,0.00016038,2]
[404272558,1770021045447,-500.0,0.00016038,2]
[404272559,1770021045457,-250.0,0.00016038,2]
[404272560,1770021045466,-500.0,0.00016038,2]
[404272561,1770021045476,-250.0,0.00016038,2]
[404272562,1770021045487,-500.0,0.00016038,2]
[404272563,1770021045496,-250.0,0.00016038,2]
[404272564,1770021045506,-500.0,0.00016038,2]
[404272565,1770021045515,-500.0,0.00016038,2]
[404272566,1770021045525,-250.0,0.00016038,2]
[404272567,1770021045534,-209.40437684,0.00016038,2]
[404272568,1770021045543,-500.0,0.00016038,2]
[404272569,1770021045553,-250.0,0.00016038,2]
[404272570,1770021045563,-500.0,0.00016038,2]
[404272571,1770021045572,-250.0,0.00016038,2]
[404272572,1770021045582,-151.0,0.00016038,2]
[404272573,1770021045592,-250.0,0.00016038,2]
[404272574,1770021045602,-250.0,0.00016038,2]
[404272575,1770021045612,-250.0,0.00016038,2]
[404272576,1770021045621,-250.0,0.00016038,2]
[404272577,1770021045631,-250.0,0.00016038,2]
[404272578,1770021045640,-250.0,0.00016038,2]
[404272579,1770021045650,-250.0,0.00016038,2]
[404272580,1770021045661,-250.0,0.00016038,2]
[404272581,1770021045672,-250.0,0.00016038,2]
[404272582,1770021045681,-250.0,0.00016038,2]
[404272583,1770021045691,-250.0,0.00016038,2]
[404272584,1770021045700,-250.0,0.00016038,2]
[404272585,1770021045710,-250.0,0.00016038,2]
[404272586,1770021045719,-250.0,0.00016038,2]
[404272587,1770021045729,-232.68774879,0.00016038,2]
[404272588,1770021045739,-250.0,0.00016038,2]
[404272589,1770021045748,-322.6107,0.00016038,2]
[404272590,1770021045758,-250.0,0.00016038,2]
[404272591,1770021045767,-250.0,0.00016038,2]
[404272592,1770021045777,-250.0,0.00016038,2]
[404272593,1770021045786,-250.0,0.00016038,2]
[404272594,1770021045796,-250.0,0.00016038,2]
[404272595,1770021045805,-277.35679052,0.00016038,2]
[404272596,1770021045814,-250.0,0.00016038,2]
[404272597,1770021045824,-250.0,0.00016038,2]
[404272598,1770021045833,-500.0,0.00016038,2]
[404272599,1770021045843,-500.0,0.00016038,2]
[404272600,1770021045853,-344.38825217,0.00016038,2]
[404272601,1770021045863,-500.0,0.00016038,2]
[404272602,1770021045872,-500.0,0.00016038,2]
[404272603,1770021045882,-209.40437684,0.00016038,2]
[404272604,1770021045892,-1428.38747117,0.00016038,2]
[404272605,1770021045901,-859.80605061,0.00016038,2]
[404272606,1770021045911,-500.0,0.00016042,2]
[404272607,1770021045922,-40561.60534355,0.00016073,2]
[404272608,1770021045932,-205.58,0.00016081,2]
[404272609,1770021045941,-772.93,0.00016084,2]
[404272610,1770021045950,-217.15233878,0.00016093,2]
[404272611,1770021045960,-3412.42,0.00016116,2]
[404272612,1770021045971,-225.18697532,0.00016148,2]
[404272613,1770021045981,-1277.64620196,0.00016164,2]
[404272614,1770021045991,-1798.36118205,0.00016164,2]
[404272615,1770021046002,-755.81909068,0.00016179,2]
[404272616,1770021046012,-159.99318318,0.00016191,2]
[404272617,1770021046022,-150.0,0.000162,2]
[404272618,1770021046031,-13553.43385472,0.000162,5]
[404272619,1770021046041,-233.51889341,0.00016203,2]
[404272620,1770021046050,-150.0,0.00016222,2]
[404272621,1770021046061,-407.51,0.00016233,2]
[404272622,1770021046070,-150.0,0.00016244,2]
[404272623,1770021046079,-242.15909246,0.00016258,2]
[404272624,1770021046089,-150.0,0.00016266,2]
[404272625,1770021046099,-4609.0,0.00016271,2]
[404272626,1770021046108,-21692.07382605,0.00016283,2]
[404272627,1770021046117,-150.0,0.00016288,2]
[404272628,1770021046127,-407.51,0.00016301,2]
[404272629,1770021046136,-150.0,0.0001631,2]
[404272630,1770021046146,-251.11897888,0.00016313,2]
[404272631,1770021046155,-150.0,0.00016332,2]
[404272632,1770021046166,-150.0,0.00016354,2]
[404272633,1770021046176,-260.4103811,0.00016368,2]
[404272634,1770021046185,-407.51,0.0001637,2]
[404272635,1770021046194,-150.0,0.00016376,2]
[404272636,1770021046203,-150.0,0.00016398,2]
[404272637,1770021046212,-200.26,0.00016399,2]
[404272638,1770021046221,-2835.0,0.000164,2]
[404272639,1770021046231,-163.0,0.000164,2]
[404272640,1770021046240,-163.0,0.000164,2]
[404272641,1770021046249,-163.0,0.000164,2]
[404272642,1770021046258,-163.0,0.000164,2]
[404272643,1770021046267,-150.0,0.0001642,2]
[404272644,1770021046276,-270.0455652,0.00016423,2]
[404272645,1770021046286,-642.88,0.00016437,2]
[404272646,1770021046295,-1872.11781497,0.00016438,2]
[404272647,1770021046305,-151.0,0.00016438,2]
[404272648,1770021046314,-151.0,0.00016438,2]
[404272649,1770021046324,-151.0,0.00016438,2]
[404272650,1770021046333,-500.0,0.00016438,2]
[404272651,1770021046343,-583.52076571,0.00016438,2]
[404272652,1770021046353,-1374.51456888,0.00016438,2]
[404272653,1770021046363,-1374.51456888,0.00016438,2]
[404272654,1770021046373,-1374.51456888,0.00016438,2]
[404272655,1770021046382,-1374.51456888,0.00016438,2]
[404272656,1770021046392,-1374.51456888,0.00016438,2]
[404272657,1770021046401,-1374.51456888,0.00016438,2]
[404272658,1770021046412,-1374.51456888,0.00016438,2]
[404272659,1770021046421,-1374.51456888,0.00016438,2]
[404272660,1770021046431,-1374.51456888,0.00016438,2]
[404272661,1770021046441,-1374.51456888,0.00016438,2]
[404272662,1770021046450,-1374.51456888,0.00016438,2]
[404272663,1770021046460,-1374.51456888,0.00016438,2]
[404272664,1770021046469,-1374.51456888,0.00016438,2]
[404272665,1770021046479,-1374.51456888,0.00016438,2]
[404272666,1770021046488,-1374.51456888,0.00016438,2]
[404272667,1770021046497,-1374.51456888,0.00016438,2]
[404272668,1770021046506,-1374.51456888,0.00016438,2]
[404272669,1770021046515,-1374.51456888,0.00016438,2]
[404272670,1770021046525,-1374.51456888,0.00016438,2]
[404272671,1770021046534,-1374.51456888,0.00016438,2]
[404272672,1770021046544,-1374.51456888,0.00016438,2]
[404272673,1770021046553,-1374.51456888,0.00016438,2]
[404272674,1770021046563,-1374.51456888,0.00016438,2]
[404272675,1770021046572,-1374.51456888,0.00016438,2]
[404272676,1770021046581,-1374.51456888,0.00016438,2]
[404272677,1770021046591,-1374.51456888,0.00016438,2]
[404272678,1770021046600,-1374.51456888,0.00016438,2]
[404272680,1770021046609,-1374.51456888,0.00016438,2]
[404272681,1770021046618,-1374.51456888,0.00016438,2]
[404272682,1770021046627,-1374.51456888,0.00016438,2]
[404272683,1770021046636,-1374.51456888,0.00016438,2]
[404272684,1770021046646,-1374.51456888,0.00016438,2]
[404272685,1770021046655,-1374.51456888,0.00016438,2]
[404272686,1770021046666,-1374.51456888,0.00016438,2]
[404272687,1770021046675,-1374.51456888,0.00016438,2]
[404272688,1770021046684,-1374.51456888,0.00016438,2]
[404272689,1770021046693,-1374.51456888,0.00016438,2]
[404272690,1770021046702,-1374.51456888,0.00016438,2]
[404272691,1770021046711,-1374.51456888,0.00016438,2]
[404272692,1770021046720,-1374.51456888,0.00016438,2]
[404272693,1770021046730,-1374.51456888,0.00016438,2]
[404272694,1770021046740,-1374.51456888,0.00016438,2]
[404272695,1770021046749,-1374.51456888,0.00016438,2]
[404272696,1770021046758,-1374.51456888,0.00016438,2]
[404272697,1770021046768,-1374.51456888,0.00016438,2]
[404272698,1770021046777,-1374.51456888,0.00016438,2]
[404272699,1770021046787,-1374.51456888,0.00016438,2]
[404272700,1770021046796,-1374.51456888,0.00016438,2]
[404272701,1770021046806,-1374.51456888,0.00016438,2]
[404272702,1770021046815,-1374.51456888,0.00016438,2]
[404272703,1770021046825,-1374.51456888,0.00016438,2]
[404272704,1770021046834,-1374.51456888,0.00016438,2]
[404272705,1770021046843,-2578.2421411,0.00016438,2]
[404272706,1770021046853,-2578.2421411,0.00016438,2]
[404272707,1770021046862,-2578.2421411,0.00016438,2]
[404272708,1770021046871,-2578.2421411,0.00016438,2]
[404272709,1770021046880,-2578.2421411,0.00016438,2]
[404272710,1770021046890,-2578.2421411,0.00016438,2]
[404272711,1770021046899,-2578.2421411,0.00016438,2]
[404272712,1770021046908,-2578.2421411,0.00016438,2]
[404272713,1770021046918,-2578.2421411,0.00016438,2]
[404272714,1770021046932,-2578.2421411,0.00016438,2]
[404272715,1770021046942,-2578.2421411,0.00016438,2]
[404272716,1770021046951,-2578.2421411,0.00016438,2]
[404272717,1770021046961,-2578.2421411,0.00016438,2]
[404272718,1770021046970,-2578.2421411,0.00016438,2]
[404272719,1770021046979,-2578.2421411,0.00016438,2]
[404272720,1770021046988,-2578.2421411,0.00016438,2]
[404272721,1770021046998,-2578.2421411,0.00016438,2]
[404272722,1770021047008,-2578.2421411,0.00016438,2]
[404272723,1770021047017,-2578.2421411,0.00016438,2]
[404272724,1770021047026,-2578.2421411,0.00016438,2]
[404272725,1770021047035,-2578.2421411,0.00016438,2]
[404272726,1770021047044,-2578.2421411,0.00016438,2]
[404272727,1770021047053,-2578.2421411,0.00016438,2]
[404272728,1770021047062,-2578.2421411,0.00016438,2]
[404272729,1770021047071,-2578.2421411,0.00016438,2]
[404272730,1770021047081,-2578.2421411,0.00016438,2]
[404272731,1770021047090,-2578.2421411,0.00016438,2]
[404272732,1770021047099,-2578.2421411,0.00016438,2]
[404272733,1770021047109,-2548.94393496,0.00016438,2]
[404272734,1770021047118,-2548.94393496,0.00016438,2]
[404272735,1770021047128,-2548.94393496,0.00016438,2]
[404272736,1770021047138,-2548.94393496,0.00016438,2]
[404272737,1770021047148,-2548.94393496,0.00016438,2]
[404272738,1770021047157,-2548.94393496,0.00016438,2]
[404272739,1770021047167,-2548.94393496,0.00016438,2]
[404272740,1770021047176,-2548.94393496,0.00016438,2]
[404272741,1770021047186,-2548.94393496,0.00016438,2]
[404272742,1770021047195,-2548.94393496,0.00016438,2]
[404272743,1770021047204,-2548.94393495,0.00016438,2]
[404272744,1770021047214,-256.207376,0.00016438,2]
[404272745,1770021047223,-256.207376,0.00016438,2]
[404272746,1770021047233,-256.207376,0.00016438,2]
[404272747,1770021047242,-256.207376,0.00016438,2]
[404272748,1770021047251,-151.0,0.00016438,2]
[404272749,1770021047261,-151.0,0.00016438,2]
[404272750,1770021047270,-211.795815,0.00016438,2]
[404272751,1770021047280,-315.036559,0.00016438,2]
[404272752,1770021047289,-315.036559,0.00016438,2]
[404272753,1770021047298,-247.496977,0.00016438,2]
[404272754,1770021047308,-315.036559,0.00016438,2]
[404272755,1770021047317,-247.496977,0.00016438,2]
[404272756,1770021047326,-315.036559,0.00016438,2]
[404272757,1770021047335,-247.496977,0.00016438,2]
[404272758,1770021047345,-247.496977,0.00016438,2]
[404272759,1770021047354,-250.55733734,0.00016438,2]
[404272760,1770021047364,-800.78453244,0.00016438,2]
[404272761,1770021047374,-151.0,0.00016438,2]
[404272762,1770021047383,-151.0,0.00016438,2]
[404272763,1770021047392,-151.0,0.00016438,2]
[404272764,1770021047401,-150.0,0.00016441,2]
[404272765,1770021047412,-150.0,0.00016463,2]
[404272766,1770021047421,-371.81,0.00016469,2]
[404272767,1770021047430,-280.03725112,0.00016478,2]
[404272769,1770021047440,-177.46,0.00016483,2]
[404272771,1770021047449,-150.0,0.00016485,2]
[404272773,1770021047459,-150.0,0.00016507,2]
[404272775,1770021047468,-592.72,0.00016515,2]
[404272779,1770021047477,-150.0,0.00016529,2]
[404272780,1770021047486,-188.04,0.00016532,2]
[404272781,1770021047496,-290.39862941,0.00016533,2]
[404272782,1770021047505,-150.0,0.00016551,2]
[404272783,1770021047514,-300.0,0.00016567,2]
[404272785,1770021047523,-151.0,0.00016568,2]
[404272786,1770021047533,-151.0,0.00016568,2]
[404272787,1770021047542,-297.581403,0.00016568,2]
[404272788,1770021047551,-1500.0,0.00016568,2]
[404272789,1770021047560,-1004.26216588,0.00016568,2]
[404272790,1770021047570,-1500.0,0.00016568,2]
[404272791,1770021047579,-343.08326797,0.00016568,2]
[404272792,1770021047589,-1500.0,0.00016568,2]
[404272793,1770021047598,-665.40489721,0.00016568,2]
[404272794,1770021047607,-1500.0,0.00016568,2]
[404272795,1770021047616,-1500.0,0.00016568,2]
[404272796,1770021047626,-505.45817911,0.00016568,2]
[404272797,1770021047636,-622.87168328,0.00016568,2]
[404272798,1770021047645,-505.38162593,0.00016568,2]
[404272799,1770021047654,-1005.54193795,0.00016568,2]
[404272800,1770021047666,-1005.24936027,0.00016568,2]
[404272801,1770021047676,-240.83933027,0.00016568,2]
[404272802,1770021047685,-504.6853335,0.00016568,2]
[404272803,1770021047695,-1500.0,0.00016568,2]
[404272804,1770021047704,-1500.0,0.00016568,2]
[404272805,1770021047774,-1500.0,0.00016568,2]
[404272806,1770021047785,-1500.0,0.00016568,2]
[404272807,1770021047794,-1500.0,0.00016568,2]
[404272808,1770021047803,-545.1454494,0.00016568,2]
[404272809,1770021047812,-504.30163313,0.00016568,2]
[404272810,1770021047821,-1500.0,0.00016568,2]
[404272811,1770021047830,-1500.0,0.00016568,2]
[404272812,1770021047839,-1500.0,0.00016568,2]
[404272813,1770021047848,-1500.0,0.00016568,2]
[404272814,1770021047857,-776.88278142,0.00016568,2]
[404272815,1770021047866,-1500.0,0.00016568,2]
[404272816,1770021047875,-1500.0,0.00016568,2]
[404272817,1770021047884,-150.0,0.00016573,2]
[404272818,1770021047893,-305.66548204,0.0001658,2]
[404272819,1770021047903,-181.08010149,0.00016586,2]
[404272820,1770021047913,-217.15233878,0.00016586,2]
[404272821,1770021047927,-151.49674582,0.00016586,2]
[404272822,1770021047936,-168.90333538,0.00016586,2]
[404272823,1770021047945,-217.15233878,0.00016586,2]
[404272824,1770021047954,-1481.23780761,0.00016586,2]
[404272825,1770021047965,-891.61887448,0.00016586,2]
[404272826,1770021047975,-301.1433787,0.00016588,2]
[404272827,1770021047984,-500.0,0.0001659,2]
[404272828,1770021047995,-188.04,0.00016594,2]
[404272829,1770021048005,-150.0,0.00016595,2]
[404272830,1770021048014,-150.0,0.00016617,2]
[404272831,1770021048022,-150.0,0.00016639,2]
[404272832,1770021048032,-188.04,0.00016657,2]
[404272833,1770021048040,-150.0,0.00016661,2]
[404272834,1770021048050,-150.0,0.00016683,2]
[404272835,1770021048059,-150.0,0.00016705,2]
[404272836,1770021048069,-195.13,0.00016712,2]
[404272837,1770021048078,-152.0,0.00016715,3]
[404272838,1770021048087,-163.0,0.0001672,2]
[404272839,1770021048096,-163.0,0.0001672,2]
[404272840,1770021048105,-163.0,0.0001672,2]
[404272841,1770021048113,-150.0,0.00016727,2]
[404272842,1770021048122,-150.0,0.00016749,2]
[404272843,1770021048131,-150.0,0.00016771,2]
[404272844,1770021048140,-547.79472066,0.00016786,2]
[404272845,1770021048149,-150.0,0.00016793,2]
[404272846,1770021048158,-40561.60534355,0.00016796,2]
[404272847,1770021048167,-159.99318318,0.00016814,2]
[404272848,1770021048176,-150.0,0.00016815,2]
[404272849,1770021048185,-150.0,0.00016837,2]
[404272850,1770021048195,-500.0,0.00016847,2]
[404272851,1770021048203,-150.0,0.00016859,2]
[404272852,1770021048212,-150.0,0.0001688,2]
[404272853,1770021048221,-150.0,0.00016902,2]
[404272854,1770021048230,-163.0,0.00016915,2]
[404272855,1770021048239,-150.0,0.00016924,2]
[404272856,1770021048248,-21692.07382605,0.0001694,2]
[404272857,1770021048257,-150.0,0.00016946,2]
[404272858,1770021048267,-10091.57601831,0.00016958,2]
[404272859,1770021048275,-150.0,0.00016968,2]
[404272860,1770021048284,-150.0,0.0001699,2]
[404272861,1770021048294,-2205.73614126,0.00017,3]
[404272862,1770021048303,-157726.06092768,0.00017,2]
[404272863,1770021048312,-300.0,0.00017,2]
[404272864,1770021048321,-986.0,0.00017012,2]
[404272865,1770021048330,-150.0,0.00017012,2]
[404272866,1770021048339,-1899.6725397,0.00017019,2]
[404272867,1770021048348,-150.0,0.00017034,2]
[404272868,1770021048357,-163.0,0.0001704,2]
[404272869,1770021048365,-1666.0,0.0001704,2]
[404272870,1770021048374,-163.0,0.0001704,2]
[404272871,1770021048383,-313.0,0.0001704,2]
[404272872,1770021048392,-150.0,0.00017056,2]
[404272873,1770021048401,-150.0,0.00017078,2]
[404272874,1770021048411,-500.0,0.00017096,2]
[404272875,1770021048420,-150.0,0.000171,2]
[404272876,1770021048428,-1500.0,0.000171,2]
[404272877,1770021048439,-592.72,0.00017112,2]
[404272878,1770021048448,-1008.230722,0.00017116,2]
[404272879,1770021048457,-2128.18837233,0.00017116,2]
[404272880,1770021048466,-2000.0,0.00017116,2]
[404272881,1770021048475,-2000.0,0.00017116,2]
[404272882,1770021048484,-315.28060531,0.00017116,2]
[404272883,1770021048493,-458.07275487,0.00017116,2]
[404272884,1770021048502,-2000.0,0.00017116,2]
[404272885,1770021048511,-1756.98671009,0.00017116,2]
[404272886,1770021048520,-1988.36339388,0.00017116,2]
[404272887,1770021048530,-1143.18674336,0.00017116,2]
[404272888,1770021048539,-2000.0,0.00017116,2]
[404272889,1770021048547,-1474.64879752,0.00017116,2]
[404272890,1770021048557,-2000.0,0.00017116,2]
[404272891,1770021048565,-2000.0,0.00017116,2]
[404272892,1770021048574,-1189.68040771,0.00017116,2]
[404272893,1770021048584,-1006.20015718,0.00017116,2]
[404272894,1770021048593,-150.0,0.00017122,2]
[404272895,1770021048602,-187.78006525,0.00017134,2]
[404272896,1770021048612,-225.18697532,0.00017134,2]
[404272897,1770021048621,-225.18697532,0.00017134,2]
[404272898,1770021048630,-1536.04360649,0.00017134,2]
[404272899,1770021048638,-924.60877284,0.00017134,2]
[404272900,1770021048648,-500.0,0.00017138,2]
[404272901,1770021048657,-177.46,0.00017142,2]
[404272902,1770021048667,-150.0,0.00017144,2]
[404272903,1770021048676,-150.0,0.00017166,2]
[404272904,1770021048685,-150.0,0.00017188,2]
[404272905,1770021048694,-150.0,0.0001721,2]
[404272906,1770021048703,-5888.0,0.0001722,2]
[404272907,1770021048712,-150.0,0.00017232,2]
[404272908,1770021048738,-150.0,0.00017254,2]
[404272909,1770021048747,-1000.0,0.0001726,2]
[404272910,1770021048756,-150.0,0.00017276,2]
[404272911,1770021048765,-150.0,0.00017298,2]
[404272912,1770021048774,-150.0,0.0001732,2]
[404272913,1770021048783,-150.0,0.00017341,2]
[404272914,1770021048793,-163.0,0.0001736,2]
[404272915,1770021048802,-150.0,0.00017363,2]
[404272916,1770021048811,-150.0,0.00017385,2]
[404272917,1770021048819,-1500.0,0.000174,2]
[404272918,1770021048829,-334.5472959,0.00017407,2]
[404272919,1770021048839,-150.0,0.00017407,2]
[404272920,1770021048848,-200.009499,0.00017422,2]
[404272921,1770021048857,-150.0,0.00017429,2]
[404272922,1770021048866,-159.99318318,0.00017437,2]
[404272923,1770021048875,-150.0,0.00017451,2]
[404272924,1770021048884,-150.0,0.00017473,2]
[404272925,1770021048892,-150.0,0.00017495,2]
[404272926,1770021048902,-13442.50995431,0.000175,2]
[404272927,1770021048911,-150.0,0.00017517,2]
[404272928,1770021048920,-40561.60534355,0.00017518,2]
[404272929,1770021048932,-387.0,0.00017521,2]
[404272930,1770021048942,-1000.0,0.00017534,2]
[404272931,1770021048951,-150.0,0.00017539,2]
[404272932,1770021048960,-205.58,0.00017556,2]
[404272933,1770021048971,-150.0,0.00017561,2]
[404272934,1770021048980,-150.0,0.00017583,2]
[404272935,1770021048990,-150.0,0.00017605,2]
[404272936,1770021049000,-5888.0,0.00017616,2]
[404272937,1770021049010,-123413.9279449,0.00017618,2]
[404272938,1770021049019,-151.0,0.00017618,2]
[404272939,1770021049029,-151.0,0.00017618,2]
[404272940,1770021049038,-151.0,0.00017618,2]
[404272941,1770021049047,-151.0,0.00017618,2]
[404272942,1770021049056,-170.567658,0.00017618,2]
[404272943,1770021049065,-150.0,0.00017627,2]
[404272944,1770021049074,-3012.2001319,0.0001764,2]
[404272945,1770021049084,-150.0,0.00017649,2]
[404272946,1770021049094,-502.76473862,0.00017664,2]
[404272947,1770021049104,-1002.53462592,0.00017664,2]
[404272948,1770021049113,-1002.03881526,0.00017664,2]
[404272949,1770021049122,-947.23523297,0.00017664,2]
[404272950,1770021049133,-1216.63993214,0.00017664,2]
[404272951,1770021049142,-2004.86417643,0.00017664,2]
[404272952,1770021049152,-150.0,0.00017671,2]
[404272953,1770021049161,-205.57976423,0.00017675,2]
[404272954,1770021049171,-152.0,0.00017679,4]
[404272955,1770021049180,-163.0,0.0001768,2]
[404272956,1770021049189,-986.0,0.0001768,2]
[404272957,1770021049199,-642.88,0.00017681,2]
[404272958,1770021049208,-642.88,0.00017681,2]
[404272959,1770021049217,-642.88,0.00017681,2]
[404272960,1770021049226,-642.88,0.00017681,2]
[404272961,1770021049235,-643.04688598,0.00017681,2]
[404272962,1770021049245,-194.72792766,0.00017682,2]
[404272963,1770021049253,-233.51889341,0.00017682,2]
[404272964,1770021049263,-233.51889341,0.00017682,2]
[404272965,1770021049272,-1592.87721993,0.00017682,2]
[404272966,1770021049281,-958.81929743,0.00017682,2]
[404272967,1770021049290,-500.0,0.00017686,2]
[404272968,1770021049300,-150.0,0.00017693,2]
[404272969,1770021049309,-592.72,0.00017709,2]
[404272970,1770021049318,-150.0,0.00017715,2]
[404272971,1770021049327,-25000.0,0.00017724,3]
[404272972,1770021049337,-25000.0,0.00017733,3]
[404272973,1770021049346,-286.0,0.00017734,2]
[404272974,1770021049355,-150.0,0.00017737,2]
[404272975,1770021049366,-25000.0,0.00017742,3]
[404272976,1770021049375,-25000.0,0.0001775,3]
[404272977,1770021049384,-150.0,0.00017759,2]
[404272978,1770021049394,-25000.0,0.00017759,3]
[404272979,1770021049403,-25000.0,0.00017768,3]
[404272980,1770021049413,-25000.0,0.00017777,3]
[404272981,1770021049422,-150.0,0.0001778,2]
[404272982,1770021049431,-5888.0,0.00017781,2]
[404272983,1770021049441,-25000.0,0.00017786,3]
[404272984,1770021049450,-1277.693,0.00017788,2]
[404272985,1770021049459,-204.768,0.00017788,2]
[404272986,1770021049469,-1205.0,0.00017788,2]
[404272987,1770021049479,-929.792,0.00017788,2]
[404272988,1770021049488,-162.264,0.00017788,2]
[404272989,1770021049498,-732.231,0.00017788,2]
[404272990,1770021049508,-25000.0,0.00017794,3]
[404272991,1770021049517,-177.46,0.00017802,2]
[404272992,1770021049526,-150.0,0.00017802,2]
[404272993,1770021049536,-25000.0,0.00017803,3]
[404272994,1770021049546,-500.0,0.00017808,2]
[404272995,1770021049555,-1000.0,0.00017808,2]
[404272996,1770021049564,-25000.0,0.00017812,3]
[404272997,1770021049574,-2000.0,0.0001782,2]
[404272998,1770021049584,-2000.0,0.0001782,2]
[404272999,1770021049594,-2000.0,0.0001782,2]
[404273000,1770021049603,-2000.0,0.0001782,2]
[404273001,1770021049612,-25000.0,0.00017821,3]
[404273002,1770021049621,-150.0,0.00017824,2]
[404273003,1770021049631,-25000.0,0.0001783,3]
[404273004,1770021049640,-25000.0,0.00017838,3]
[404273005,1770021049649,-150.0,0.00017846,2]
[404273006,1770021049658,-25000.0,0.00017847,3]
[404273007,1770021049668,-200.0,0.00017855,2]
[404273008,1770021049678,-25000.0,0.00017856,3]
[404273009,1770021049687,-200.0,0.00017856,2]
[404273010,1770021049697,-200.0,0.00017856,2]
[404273011,1770021049706,-151.0,0.00017856,2]
[404273012,1770021049715,-151.0,0.00017856,2]
[404273013,1770021049726,-151.0,0.00017856,2]
[404273014,1770021049736,-500.0,0.00017863,2]
[404273015,1770021049746,-25000.0,0.00017865,3]
[404273016,1770021049756,-986.0,0.00017865,2]
[404273017,1770021049765,-5888.0,0.00017867,2]
[404273018,1770021049774,-5888.0,0.00017868,2]
[404273019,1770021049784,-150.0,0.00017868,2]
[404273020,1770021049793,-25000.0,0.00017874,3]
[404273021,1770021049803,-25000.0,0.00017882,3]
[404273022,1770021049812,-150.0,0.0001789,2]
[404273023,1770021049822,-25000.0,0.00017891,3]
[404273024,1770021049831,-5858.0,0.00017898,2]
[404273025,1770021049840,-1777.28427788,0.000179,3]
[404273026,1770021049850,-502.14,0.000179,4]
[404273027,1770021049860,-547.79472066,0.000179,2]
[404273028,1770021049869,-25000.0,0.000179,3]
[404273029,1770021049879,-202.58370899,0.000179,2]
[404273030,1770021049889,-755.81909068,0.000179,2]
[404273031,1770021049898,-1432.20558629,0.000179,2]
[404273032,1770021049908,-9075.22592313,0.000179,2]
[404273033,1770021049917,-267.8288771,0.000179,2]
[404273034,1770021049931,-13233.0,0.000179,2]